Cogmind - Beta 13 @@@ ROGUE MODE // 2024.05.21 @ 23:27:17 Player: ROOK Result: Destroyed by G-34 Mercenary via exploding Fusion Modulator Performance ------------- Evolutions (0) 0 Regions Visited (1) 200 Robots Destroyed (15) 75 Value Destroyed (200) 200 Prototype IDs (0) 0 Alien Tech Used (0) 0 Bonus (0) 0 TOTAL SCORE: 475 Bonus ------- None Cogmind --------- Core Integrity 0/250 Matter 400/400 Energy 250/250 System Corruption 0% Temperature Cool (48) Movement Rolling (90) Location -10/Materials Parts ------- > --- POWER (1) -------- Ion Engine > --- PROPULSION (2) --- Wheel Compact Wheel > --- UTILITY (2) ------ Heat Sink Medium Matter Pod > --- WEAPON (2) ------- Beam Cannon Grenade Launcher > --- INVENTORY (5) ---- Light Ion Engine Peak State ------------ > --- POWER ------------ Ion Engine > --- PROPULSION ------- Aluminum Leg Aluminum Leg > --- UTILITY ---------- Heat Sink Small Matter Pod > --- WEAPON ----------- EM Pulse Gun Assault Rifle > --- INVENTORY -------- Light Ion Engine Flight Unit Grenade Launcher [Rating: 7] Favorites ----------- Power Ion Engine Engine Ion Engine Propulsion Aluminum Leg Leg Aluminum Leg Wheel Wheel Flight Unit Flight Unit Utility Heat Sink Device Heat Sink Storage Small Matter Pod Weapon Assault Rifle Energy Gun EM Pulse Gun Energy Cannon Beam Cannon Ballistic Gun Assault Rifle Launcher Grenade Launcher Special Weapon Mining Laser Build | -11 -10 ------- Run | Yrd Mat Slots Evolved . | . . Power . | . . Propulsion . | . . Utility . | . . Weapon . | . . Parts Attached 20 | 5 15 Power 3 | 1 2 Engine 3 | 1 2 Core . | . . Reactor . | . . Propulsion 7 | 2 5 Treads . | . . Leg 4 | 2 2 Wheel 2 | . 2 Hover . | . . Flight 1 | . 1 Utility 3 | . 3 Device 1 | . 1 Storage 2 | . 2 Processor . | . . Hackware . | . . Protection . | . . Artifact . | . . Weapon 7 | 2 5 Energy Gun 1 | . 1 Energy Cannon 1 | . 1 Ballistic Gun 2 | 2 . Ballistic Cannon . | . . Launcher 2 | . 2 Special Weapon 1 | . 1 Impact Weapon . | . . Slashing Weapon . | . . Piercing Weapon . | . . Special Melee Weapon . | . . Unidentified Prototypes . | . . Parts Lost 2 | . 2 Power . | . . Propulsion 1 | . 1 Utility . | . . Weapon 1 | . 1 Highest Loss Streak 2 | . 2 To Critical Strikes . | . . Average Slot Usage (%) 83 | . 83 Engine 14 | . 14 Leg 17 | . 17 Wheel 4 | . 4 Flight 2 | . 2 Device 9 | . 9 Storage 10 | . 10 Energy Gun 3 | . 3 Energy Cannon 7 | . 7 Ballistic Gun 8 | . 8 Launcher 4 | . 4 Naked Turns . | . . Heaviest Build 14 | 6 14 Greatest Support 26 | 20 26 Greatest Overweight (x) 2 | . 2 Average Overweight (x) . | . . Largest Inventory Capacity 5 | 5 5 Average Capacity 5 | 5 5 Most Carried 5 | 5 5 Average Carried 2 | 1 3 Final Capacity 5 | 5 5 Final Carried 5 | 5 1 Class Distribution -------------------- 100% | Mutant Dominant Class ---------------- Mutant | -10/Materials Resources | -11 -10 ----------- Run | Yrd Mat Matter Collected 559 | 262 297 Remotely . | . . Salvage Created 333 | 35 298 Parts 24 | 3 21 Haulers Intercepted . | . . Recyclers Shooed . | . . Parts Field Recycled . | . . Retrieved Matter . | . . Parts Self-Destructed . | . . Prevented . | . . Kills | -11 -10 ------- Run | Yrd Mat Combat Hostiles Destroyed 12 | 1 11 Guns 7 | 1 6 Cannons 2 | . 2 AOE 3 | . 3 Classes Destroyed 4 | 1 3 Worker 2 | . 2 Recycler 1 | . 1 Swarmer 9 | . 9 Grunt 3 | 1 2 Best Kill Streak 4 | 1 4 Combat Bots Only 3 | 1 3 Max Kills in Single Turn 3 | 1 3 Gunslinging . | . . Exploded 2 | . 2 Melee . | . . Uniques/NPCs Destroyed . | . . Combat | -11 -10 -------- Run | Yrd Mat Hostile Shots Fired 96 | 3 93 Missed 27 | . 27 Damage Taken 714 | 33 681 Core 260 | . 260 Absorbed by Shields . | . . Core Remaining (%) 100 | 100 . Volleys Fired 54 | 3 51 Largest 2 | 2 2 Hottest 100 | 40 100 Shots Fired 78 | 6 72 Gun 43 | 6 37 Cannon 32 | . 32 Launcher 3 | . 3 Special . | . . Kinetic 26 | 6 20 Thermal 32 | . 32 Explosive 3 | . 3 Electromagnetic 17 | . 17 Robot Hit Streak 3 | 3 3 Robot Miss Streak 4 | 2 4 Penetration Max . | . . Secondary Targets . | . . Shots Hit Robots 29 | 4 25 Core Hits 17 | 2 15 Critical Kills . | . . Critical Parts Destroyed . | . . Critical Strikes 1 | . 1 Corrupt 1 | . 1 Melee Attacks . | . . Impact . | . . Slashing . | . . Piercing . | . . Sneak Attacks . | . . Combat Hostiles . | . . Follow-up Attacks . | . . Damage Inflicted 608 | 40 568 Guns 204 | 40 164 Cannons 173 | . 173 Explosions 231 | . 231 Melee . | . . Ramming . | . . Kinetic 139 | 40 99 Thermal 173 | . 173 Explosive 231 | . 231 Electromagnetic 65 | . 65 Impact . | . . Slashing . | . . Piercing . | . . Highest Corruption . | . . Average Corruption . | . . Corruption Purged . | . . Corruption Blocked . | . . Overload Shots . | . . Overflow Damage . | . . Projectiles . | . . Explosions . | . . Melee . | . . Knockbacks . | . . Impact . | . . Kinetic . | . . Secondary . | . . Self-Inflicted Damage 40 | . 40 Shots 1 | . 1 Rammed . | . . Targets Rammed . | . . Kicked . | . . Crushed . | . . Highest Temperature 36 | . 36 Average Temperature 15 | . 15 Received Heat Transfer 72 | 18 54 Siege Activations . | . . Robots Corrupted . | . . Combat Hostiles . | . . Parts Fried . | . . Impact Corruptions . | . . Robots Melted . | . . Combat Hostiles . | . . Parts Melted 1 | . 1 Heat Transferred 370 | . 370 Parts Sabotaged . | . . Parts Stolen . | . . Parts Stripped . | . . Power Chain Reactions . | . . Alert | -11 -10 ------- Run | Yrd Mat Peak Influence 301 | 20 301 Initial 13 | . 13 Average 121 | 2 151 Maximum Alert Level 1 | . 1 Low Security (%) 74 | 100 67 Level 1 25 | . 32 Level 2 . | . . Level 3 . | . . Level 4 . | . . Level 5 . | . . High Security . | . . Max Security . | . . Squads Dispatched 2 | . 2 Investigation 2 | . 2 Extermination . | . . Reinforcement . | . . Assault . | . . Garrison . | . . Intercept . | . . Searches Triggered . | . . Construction Impeded . | . . Haulers Reinforced . | . . Active Scanning Responses . | . . Cargo Convoy Interrupts . | . . Stealth | -11 -10 --------- Run | Yrd Mat Distress Signals 1 | . 1 Communications Jammed . | . . Distress Signals . | . . Times Spotted 21 | 1 20 Peak Tracking Total 4 | 1 4 Tactical Retreats 2 | . 2 Traps | -11 -10 ------- Run | Yrd Mat Traps Triggered 1 | . 1 Indirectly . | . . Trap Hack Attempts . | . . Triggered . | . . Disarmed . | . . Reprogrammed . | . . Reused . | . . Traps Extracted . | . . Installed . | . . Triggered . | . . Machines | -11 -10 ---------- Run | Yrd Mat Machines Disabled . | . . Max in Single Turn . | . . Machines Repaired . | . . Machines Dismantled . | . . Machines Sabotaged . | . . Overloaded Fab Kills . | . . Hacking | -11 -10 --------- Run | Yrd Mat Machines Accessed 2 | . 2 Terminals 2 | . 2 Fabricators . | . . Repair Stations . | . . Recycling Units . | . . Scanalyzers . | . . Garrison Access . | . . Total Hacks 10 | . 10 Successful 3 | . 3 Failed 6 | . 6 Catastrophic . | . . Database Lockouts 1 | . 1 Manual 1 | . 1 Terminals 10 | . 10 Fabricators . | . . Repair Stations . | . . Recycling Units . | . . Scanalyzers . | . . Garrison Access . | . . Terminal Hacks 3 | . 3 Record 3 | . 3 Fabricator Hacks . | . . Repair Station Hacks . | . . Recycling Unit Hacks . | . . Scanalyzer . | . . Garrison Access Hacks . | . . Unauthorized Hacks . | . . Terminals . | . . Fabricators . | . . Repair Stations . | . . Recycling Units . | . . Scanalyzers . | . . Garrison Access . | . . Data Cores Recovered . | . . Used . | . . Hacking Detections 2 | . 2 Full Trace Events 2 | . 2 Feedback Events . | . . Feedback Blocked . | . . Robot Schematics Acquired . | . . Robots Built . | . . Authchips . | . . Time . | . . Total Robot Build Rating . | . . Part Schematics Acquired . | . . Parts Built . | . . Authchips . | . . Time . | . . Total Part Build Rating . | . . Parts Repaired . | . . Time . | . . Parts Recycled . | . . Recycled Matter . | . . Retrieved Matter . | . . Retrieved Components . | . . Parts Scanalyzed . | . . Part Schematics Acquired . | . . Parts Damaged . | . . Bothacking | -11 -10 ------------ Run | Yrd Mat Used RIF Installer . | . . Robots Hacked . | . . Non-combat . | . . Combat . | . . Robot Hacks Applied . | . . Relay Couplers Released . | . . Fabnet Peak Effective % . | . . Robots Rewired . | . . Allies Hacked . | . . Hacks Repelled . | . . Allies | -11 -10 -------- Run | Yrd Mat Total Allies . | . . Largest Group . | . . Highest-Rated Group . | . . Highest-Rated Ally . | . . Total Orders . | . . Ally Attacks . | . . Total Damage . | . . Kills . | . . Allies Corrupted . | . . Allies Melted . | . . Intel | -11 -10 ------- Run | Yrd Mat Robot Analysis Total . | . . Derelict Logs Recovered . | . . Drone Launches . | . . Drone Recoveries . | . . Exploration | -11 -10 ------------- Run | Yrd Mat Turns Passed 669 | 137 532 Spaces Moved 369 | 80 289 Core 29 | 29 . Treads . | . . Legs 231 | 51 180 Wheels 67 | . 67 Hover . | . . Flight 42 | . 42 Fastest Speed 50 | 50 80 Average Speed 117 | 94 124 Slowest Speed 200 | 120 200 Overloaded Moves . | . . Propulsion Burnouts . | . . Robots Hopped . | . . Cave-ins Triggered . | . . Exploration Rate (%) 21 | 9 34 Regions Visited 1 Branch Regions . Pre-discovered Areas . | . . Known Exits Taken . | . . Unknown Exits Taken 1 | 1 . Scrap Searched . | . . Spaces Dug . | . . Terrain Destroyed 19 | . 19 Melee . | . . Projectile . | . . AOE 19 | . 19 Terrain Rammed . | . . Walls Destroyed . | . . Machines Disabled . | . . Actions | -11 -10 --------- Run | Yrd Mat Total 530 | 136 394 Wait 51 | 39 12 Move 368 | 79 289 Hop . | . . Pick Up 21 | 10 11 Fast Attach 2 | . 2 Attach 11 | 5 6 Detach 2 | . 2 Swap 7 | . 7 Drop 14 | . 14 Fire 54 | 3 51 Melee . | . . Ram . | . . Kick . | . . Crush . | . . Escape Stasis . | . . Rewire . | . . Trap . | . . Miscellaneous . | . . Route ------- -11/Scrapyard -10/Materials History --------- Turn | Location | Event 3 | -11/Scrapyard | Met Revision 17 109 | -11/Scrapyard | Discovered new exit (range 8) 138 | -11/Scrapyard | Entered Materials 320 | -10/Materials | Build established: Mutant 474 | -10/Materials | Core integrity fell below 50% 510 | -10/Materials | Central database locked down 670 | -10/Materials | Destroyed by G-34 Mercenary via exploding Fusion Modulator Last Messages --------------- R-06 Scavenger collects Flight Unit. Acquired Med. Matter Pod. Dropped Sml. Matter Pod. R-06 Scavenger destroyed. Acquired 29 matter. Acquired Com. Wheel. Acquired 20 matter. Triggered Alarm Trap. An alarm sounds. ALERT: Alarm triggered, dispatching investigation squad. U-05 Engineer lays Concrete. W-16 Scout sends out distress signal. U-05 Engineer lays Concrete. When the line of fire is red, you are attempting to shoot through an object at another target, which incurs significant penalties. G-34 Mercenary destroyed. Fusion Modulator explodes. [Achievement: First Step to Greatness] Map ----- +----------------------------------------------------+ | ????????????????????????????????????? | | ????????????????????????????????????? | | ????????????????????????????????????? | | ????????????????????????????????????? | | ????????????????????????????????????? | | ????????????????????????????????????? | | ????????????????????????????????????? | | ????????????????????????????????????? | | ????????????????????????????????????? | | ????????????????????????????????????? | | ???? ???????????? ?????????????? | | ???? #??????????# ?????????????? | | ??? #??????????# "????????????? | | ???# #??????????# "????????????? | | ???# #??????????# T????????????? | | ??? #??????????# "????????????? | | ???? +??????????# "????????????? | | ???? #??????????# "????????????? | | ????# #??????????# #????????????? | | ????# #??????????# #????????????? | | ????# #??????????# ###########??? | | ##### #??????????# # #??? | | # #??????????# # """ #??? | | # #??????????# # """ #??? | | # ############ #= """ #??? | | + g%@ #??? | | # u #g !! #??? | | # # !| #??? | | # ############ # !| #??? | | # #??????????##+############??? | | +#### #???????????????????????????? | | #??# #???????????????????????????? | | #??# ##??????????????????????????? | | #?# #??????????????????????????? | | #?# #??????????????????????????? | | !#?# #??????????????????????????? | | =#?#] #??????????????????????????? | | %#?# #??????????????????????????? | | ##### ###??????????????????????????? | | !*#### #????????????????????????????? | | #???????????###########??????? | | ###?????????# T #??????? | | ### ############# #??????? | | + + #??????? | | ####+##+## # #??????? | | ## [## #####+#####??????? | | # [ | ## #???????? | | # [ # # # #### #???????? | | ##* [!| # # #??# #???????? | | ## ########?#####+#####??????? | +----------------------------------------------------+ Best States ------------- Heat Dissipation 35 Energy Generation 10 Energy Capacity 250 Matter Stores 400 Matter Capacity 400 Sight Range 16 Terrain Scan Density 10 Evasion (%) 55 Item Schematics ----------------- None Robot Schematics ------------------ None Fabricated ------------ Nothing Alien Tech Used ----------------- None Achievements -------------- First Step to Greatness Let's See Who's Tougher One Hack Too Far Challenges ------------ None Game ------ Seed QuantumShrapnelModule Manual? 0 Play Time 00:45:28 Cumulative 0.7 hours Start 2024.05.21 @ 22:27:08 End 2024.05.21 @ 23:27:17 Sessions 1 Manual Loads 0 Difficulty Rogue Special Mode None Game No. 1 Rogue 1 Adventurer 0 Explorer 0 Win Type - Total 0 Types 0/0/0/0/0/0/0/0/0 Lore% 0 Gallery% 1 Achievement% 1 Wizard Run 0 Options --------- Layout 1 ASCII 0 Keyboard 0 Movement Mouse Keybinds 0 Fullscreen 1 Font 32/Tamsyn Map View 50x35 Zoom Use 0% Tactical HUD 0 Map Filters NONE Filters NONE Steam 1 RUN: 36034065-49b3-4a95-b2fa-ae0e8b09ce1f